bitfinex-derivatives/quotes_ETHF0:USTF0_20250213
["timestamp","ask_amount","ask_price","bid_price","bid_amount"]
[1739453855710,0.00562251,2664.4,2664.2,0.75056]
[1739453855907,0.75616251,2664.4,2664.2,0.75057]
[1739453856105,0.00562251,2664.4,2664.1,3.9584]
[1739453856401,0.00562251,2664.4,2664.3,0.75055]
[1739453857204,0.00562251,2664.4,2664.1,4.26515247]
[1739453857507,0.75058,2664.2,2664.1,3.51456247]
[1739453857904,0.75058,2664.2,2664.1,0.30676247]
[1739453858101,0.75061,2664.1,2664.0,0.00562251]
[1739453858600,0.75061,2664.1,2664.0,0.32050153]
[1739453858801,3.2078,2664.3,2663.5,3.2078]
[1739453859001,0.75075,2663.6,2663.5,3.2078]
[1739453859507,3.2078,2664.0,2663.1,3.2078]
[1739453859714,1.87667,2663.9,2663.1,3.2078]
[1739453859900,3.2078,2664.0,2663.1,3.2078]
[1739453860207,3.2078,2664.0,2663.4,3.2078]
[1739453860402,0.00562251,2664.4,2663.4,3.2078]
[1739453860603,0.00562251,2664.4,2663.7,3.2078]
[1739453860805,0.7506,2664.2,2663.7,3.2078]
[1739453861006,0.00562251,2664.4,2663.8,40.8]
[1739453861408,0.75067,2663.9,2663.8,40.8]
[1739453861621,1.8765,2664.2,2663.4,3.2078]
[1739453861622,3.2078,2664.2,2663.4,3.2078]
[1739453862310,0.00562251,2664.4,2664.1,0.7506]
[1739453862502,0.00562251,2664.4,2664.0,3.2078]
[1739453862698,0.00562251,2664.4,2664.3,3.95835]
[1739453862897,9.41895886,2665.3,2664.3,3.95835]
[1739453862898,5.08342,2665.4,2664.3,3.95835]
[1739453863102,1.87569,2665.3,2664.8,3.2078]
[1739453863296,0.75049,2664.6,2664.4,3.2078]
[1739453863501,1.87588,2665.1,2664.3,40.8]
[1739453863695,9.60054886,2665.3,2664.1,5.7561]
[1739453863901,7.72485886,2665.3,2664.2,5.08425]
[1739453864199,3.2078,2665.3,2664.5,3.2078]
[1739453864399,3.2078,2665.3,2664.4,0.00562251]
[1739453864400,0.00562251,2665.0,2664.9,0.75037]
[1739453864608,0.00562251,2665.0,2664.9,3.95817]
[1739453864809,3.2078,2666.0,2664.9,9.2078]
[1739453865006,3.2078,2666.6,2665.6,3.2078]
[1739453865200,2.487,2666.8,2665.9,3.2078]
[1739453865404,3.2078,2666.9,2665.9,3.2078]
[1739453865607,3.2078,2666.9,2665.8,3.2078]
[1739453865804,3.2078,2666.9,2665.9,3.2078]
[1739453866111,0.00562251,2666.6,2666.1,3.21342251]
[1739453866905,0.75554251,2666.6,2666.2,0.75]
[1739453867110,0.00562251,2666.6,2666.1,3.21342251]
[1739453867408,0.00562251,2666.6,2666.4,3.2078]
[1739453867599,8.0246,2667.5,2666.4,3.2078]
[1739453867600,3.95728,2668.2,2667.7,0.74958]
[1739453867801,3.2078,2668.2,2667.6,3.2078]
[1739453868000,3.2078,2668.2,2667.1,3.2078]
[1739453868202,3.2078,2668.1,2667.1,3.2078]
[1739453868402,0.74953,2668.0,2667.4,0.74966]
[1739453868601,3.2078,2668.1,2667.4,3.2078]
[1739453868915,0.00562251,2668.0,2667.4,3.21342251]
[1739453869203,0.74962,2667.7,2667.4,3.21342251]
[1739453869404,0.74965,2667.5,2667.4,0.00562251]
[1739453869608,0.74962,2667.7,2667.4,0.00562251]
[1739453869903,0.00562251,2668.0,2667.5,0.74965]
[1739453869904,0.75513251,2668.0,2667.5,0.74965]
[1739453870103,0.75513251,2668.0,2667.5,0.74963]
[1739453870312,0.75513251,2668.0,2667.4,3.21342251]
[1739453870313,0.00562251,2668.0,2667.4,3.21342251]
[1739453871008,0.00562251,2668.0,2667.4,0.00562251]
[1739453871205,3.21342251,2668.0,2667.4,0.00562251]
[1739453871405,0.74965,2667.5,2667.4,0.00562251]
[1739453872103,0.74985,2666.9,2666.7,3.2078]
[1739453872311,3.2078,2667.2,2666.6,2.454]
[1739453872508,3.2078,2667.2,2666.4,0.74994]
[1739453873116,3.95755,2667.2,2666.3,3.2078]
[1739453873304,3.2078,2667.2,2666.6,3.2078]
[1739453873509,8.2885,2667.7,2667.0,0.74978]
[1739453873710,0.74966,2667.5,2666.9,3.2078]
[1739453873904,8.2885,2667.7,2666.5,3.21342251]
[1739453874113,0.74978,2667.1,2666.7,3.95766]
[1739453874317,0.74972,2667.3,2666.9,0.74981]
[1739453874610,8.2885,2667.7,2667.0,3.2078]
[1739453874810,3.2078,2667.7,2667.2,0.74972]
[1739453875011,3.2078,2667.7,2667.0,3.2078]
[1739453875210,0.00562251,2668.0,2667.5,3.2078]
[1739453875410,0.00562251,2668.0,2667.2,3.2078]
[1739453875617,0.00562251,2668.0,2667.1,3.2078]
[1739453875920,0.74955,2667.9,2667.6,0.74962]
[1739453876115,0.74958,2667.8,2667.5,0.74965]
[1739453876413,3.21342251,2668.0,2667.1,3.2078]
[1739453876620,0.74959,2667.8,2667.5,0.74964]
[1739453876819,3.21342251,2668.0,2667.4,3.2078]
[1739453877120,0.00562251,2668.0,2667.9,0.74954]
[1739453877618,2.4337,2669.3,2667.9,6.0]
[1739453877825,22.8478,2669.5,2668.9,0.74923]
[1739453878113,1.19007,2669.1,2668.7,0.7493]
[1739453878317,1.19007,2669.1,2668.4,5.6558]
[1739453878619,0.00562251,2669.0,2668.7,3.2078]
[1739453878917,0.00562251,2669.0,2668.5,0.00562251]
[1739453879109,0.00562251,2669.0,2668.7,3.2078]
[1739453879306,0.00562251,2669.0,2668.9,0.74926]
[1739453879521,0.00562251,2669.0,2668.7,3.2078]
[1739453879721,0.00562251,2669.0,2668.9,0.74926]
[1739453881317,4.51705886,2670.2,2669.9,0.74897]
[1739453881318,3.2078,2670.2,2669.9,0.74897]
[1739453881511,3.2078,2670.2,2669.5,0.74908]
[1739453881820,3.2078,2670.2,2669.4,3.2078]
[1739453882012,3.95671,2670.2,2669.4,3.2078]
[1739453882216,3.2078,2670.2,2669.7,0.74902]
[1739453882416,3.2078,2670.2,2669.4,3.2078]
[1739453882615,0.74895,2670.1,2669.7,0.74901]
[1739453882817,3.21342251,2670.2,2670.0,3.2078]
[1739453882818,0.00562251,2670.2,2670.0,3.2078]
[1739453883124,0.00562251,2670.2,2670.1,0.74892]
[1739453883510,0.74871,2670.9,2670.1,6.0]
[1739453883713,5.0791,2671.6,2670.5,3.2078]
[1739453883910,5.0791,2671.6,2670.6,44.0078]
[1739453883911,3.2078,2671.6,2670.6,44.0078]
[1739453884113,4.41529,2671.7,2670.6,3.2078]
[1739453884114,3.2078,2671.3,2670.6,3.2078]
[1739453884322,3.2078,2671.3,2670.5,3.95659]
[1739453884523,3.2078,2671.3,2670.3,2.42]
[1739453884722,0.74874,2670.8,2670.6,0.00562251]
[1739453884920,0.74871,2670.9,2670.6,0.75438251]
[1739453885124,0.74875,2670.7,2670.6,0.00562251]
[1739453885624,3.95655,2670.7,2670.6,2.51e-06]
[1739453886022,12.37755,2670.7,2670.6,2.51e-06]
[1739453886221,12.44252816,2670.7,2670.6,2.51e-06]
[1739453887122,0.74909,2669.6,2669.3,3.2078]
[1739453887325,3.2078,2669.9,2669.3,3.2078]
[1739453888020,0.74912,2669.4,2669.3,3.2078]
[1739453888723,0.00562251,2669.6,2669.1,0.00562251]
[1739453888724,0.74917,2669.2,2669.1,0.00562251]
[1739453889823,5.08072,2669.3,2668.0,5.6228]
[1739453890024,0.74942,2668.4,2668.0,3.16451]
[1739453890226,0.74942,2668.4,2668.0,3.1645]
[1739453890428,0.74944,2668.3,2667.9,5.5901]
[1739453890628,0.74943,2668.3,2667.9,6.33962]
[1739453890824,3.2078,2668.6,2667.9,5.5901]
[1739453891032,3.95715,2668.6,2668.2,0.74944]
[1739453891225,0.74938,2668.5,2668.2,3.2078]
[1739453891434,3.2078,2669.0,2668.2,3.2078]
[1739453891833,0.74938,2668.5,2668.2,3.2078]
[1739453892040,3.2078,2668.7,2668.1,0.74947]
[1739453892340,0.7494,2668.5,2668.1,0.74947]
[1739453892531,3.2078,2668.7,2667.9,5.5901]
[1739453893040,0.74947,2668.2,2667.9,3.2078]
[1739453893228,3.2078,2668.7,2667.9,3.2078]
[1739453893430,0.74943,2668.3,2668.0,0.74949]
[1739453893637,3.2078,2668.7,2667.9,3.2078]
[1739453893831,3.2078,2668.4,2667.8,0.00562251]
[1739453894330,0.74949,2668.1,2667.8,0.00562251]
[1739453894636,3.2078,2668.4,2667.9,3.2078]
[1739453894936,0.74928,2668.9,2668.6,0.74932]
[1739453895141,3.2078,2669.2,2668.3,3.2078]
[1739453895331,0.00562251,2669.0,2668.3,3.2078]
[1739453895830,0.74933,2668.7,2668.4,0.74939]
[1739453896030,0.00562251,2669.0,2668.3,3.2078]
[1739453896428,0.74948,2668.1,2668.0,5.5968]
[1739453896632,0.74942,2668.4,2668.0,3.2078]
[1739453896839,0.74945,2668.3,2667.8,0.00562251]
[1739453897035,0.74945,2668.3,2668.1,0.74947]
[1739453897237,0.74942,2668.4,2668.2,0.74946]
[1739453897439,3.2078,2668.8,2667.9,3.2078]
[1739453897639,0.74947,2668.2,2667.8,3.21342251]
[1739453897838,3.2078,2668.8,2667.8,3.21342251]
[1739453898034,0.74954,2667.9,2667.8,0.00562251]
[1739453899137,2.375,2668.6,2667.8,0.00562251]
[1739453899743,2.375,2668.6,2667.9,3.2078]
[1739453900053,3.2078,2668.8,2668.2,3.2078]
[1739453900245,0.00562251,2669.0,2668.5,3.2078]
[1739453900543,0.00562251,2669.0,2668.9,3.95706]
[1739453901139,0.00562251,2669.0,2668.9,44.75706]
[1739453901447,5.0803,2669.9,2668.9,44.75706]
[1739453901753,3.2078,2669.9,2669.3,3.2078]
[1739453902144,0.7492,2669.2,2669.0,3.2078]
[1739453902345,0.74916,2669.3,2669.0,3.95702]
[1739453902646,3.2078,2669.6,2668.5,3.2078]
[1739453902946,0.74925,2669.0,2668.9,0.00562251]
[1739453903939,1.87847251,2669.4,2668.1,43.3419]
[1739453903940,2.366,2669.3,2668.1,3.2078]
[1739453904144,3.2078,2669.2,2668.5,3.95715]
[1739453904451,0.00562251,2669.4,2668.9,3.2078]
[1739453904751,0.00562251,2669.4,2669.0,0.74923]
[1739453904947,0.00562251,2669.4,2669.3,0.74915]
[1739453905150,0.00562251,2669.4,2668.9,0.00562251]
[1739453905449,0.74923,2669.0,2668.9,0.00562251]
[1739453906155,0.74923,2669.0,2668.9,2.51e-06]
[1739453906561,6.74923,2669.0,2668.9,2.51e-06]
[1739453907160,0.74923,2669.0,2668.9,2.51e-06]
[1739453907953,6.74923,2669.0,2668.9,2.51e-06]
[1739453908258,0.74923,2669.0,2668.9,2.51e-06]
[1739453908952,3.2078,2669.2,2668.9,2.51e-06]
[1739453909362,0.74923,2669.0,2668.9,2.51e-06]
[1739453910156,11.26628886,2669.0,2668.9,2.51e-06]
[1739453910357,11.33130324,2669.0,2668.9,2.51e-06]
[1739453910559,0.74923,2669.0,2668.9,2.51e-06]
[1739453910963,6.74923,2669.0,2668.9,2.51e-06]
[1739453911161,11.3312984,2669.0,2668.9,2.51e-06]
[1739453911863,11.79162855,2669.0,2668.9,2.51e-06]
[1739453912557,13.6872984,2669.0,2668.9,2.51e-06]
[1739453912864,0.74923,2669.0,2668.9,2.51e-06]
[1739453915162,11.33130503,2669.0,2668.9,2.51e-06]
[1739453915362,11.85017201,2669.0,2668.9,2.51e-06]
[1739453915665,12.31199507,2669.0,2668.9,2.51e-06]
[1739453916265,12.2469789,2669.0,2668.9,2.51e-06]
[1739453916470,13.90777337,2669.0,2667.3,3.2078]
[1739453916772,0.74968,2667.4,2667.3,3.2078]
[1739453916973,0.74967,2667.5,2667.3,3.2078]
[1739453917170,1.87386,2667.9,2667.3,3.2078]
[1739453917373,0.74953,2668.0,2667.3,5.08208]
[1739453917665,0.00562251,2667.9,2667.3,0.00562251]
[1739453918168,0.74968,2667.4,2667.3,0.00562251]
[1739453918470,0.00562251,2667.9,2667.3,0.00562251]
[1739453919572,0.00562251,2667.9,2667.8,0.74957]
[1739453919865,0.00562251,2667.9,2667.3,3.21342251]
[1739453920065,0.74968,2667.4,2667.3,0.00562251]
[1739453920467,3.2078,2667.8,2667.3,3.21342251]
[1739453920673,0.74962,2667.7,2667.3,3.21342251]
[1739453920868,3.2078,2667.8,2667.3,3.21342251]
[1739453921073,0.00562251,2667.9,2667.7,3.2078]
[1739453921373,0.74947,2668.2,2667.7,3.2078]
[1739453921673,1.8733,2668.7,2667.9,3.2078]
[1739453921874,0.74942,2668.4,2668.2,0.74944]
[1739453922073,0.74943,2668.3,2668.0,3.2078]
[1739453922268,3.2078,2668.8,2667.7,3.2078]
[1739453922572,0.00562251,2668.4,2667.7,3.2078]
[1739453922776,0.00562251,2668.4,2668.0,3.2078]
[1739453922965,1.87358,2668.3,2667.5,5.6913]
[1739453923172,1.87358,2668.3,2667.5,8.0213]
[1739453923369,0.00562251,2668.4,2667.8,3.2078]
[1739453923672,0.00562251,2668.4,2668.1,3.2078]
[1739453924368,0.00562251,2668.4,2667.8,3.2078]
[1739453924875,0.74943,2668.3,2668.2,0.74944]
[1739453925064,0.00562251,2668.4,2668.1,3.2078]
[1739453925574,0.00562251,2668.4,2668.3,0.74943]
[1739453926871,0.00562251,2668.4,2668.2,2.3127]
[1739453927074,0.74943,2668.3,2668.2,2.3127]
[1739453927272,0.74954,2667.9,2667.8,3.2078]
[1739453927475,0.7496,2667.7,2667.6,2.3792]
[1739453928169,1.87913251,2668.4,2667.6,2.3792]
[1739453928475,0.74954,2667.9,2667.8,3.2078]
[1739453928773,1.87913251,2668.4,2667.8,3.2078]
[1739453928972,1.87913251,2668.4,2667.6,2.3792]
[1739453929277,1.87913251,2668.4,2667.9,3.2078]
[1739453929479,0.74951,2668.0,2667.9,3.95733]
[1739453929675,0.00562251,2668.4,2667.9,3.2078]
[1739453930076,0.00562251,2668.4,2668.2,3.2078]
[1739453930378,0.75502251,2668.4,2668.3,0.74943]
[1739453930579,0.74943,2668.3,2668.2,3.95723]
[1739453931372,0.74943,2668.3,2668.2,3.2078]
[1739453931679,1.87358,2668.3,2667.6,4.7092]
[1739453931981,0.7496,2667.7,2667.6,4.7092]
[1739453932176,0.7496,2667.7,2667.6,2.3792]
[1739453932377,0.74968,2667.4,2667.3,2.31832251]
[1739453933079,0.74968,2667.4,2667.3,0.00562251]
[1739453933671,3.2078,2667.5,2666.6,5.7695]
[1739453933672,0.74988,2666.7,2666.6,5.7695]
[1739453933872,0.74988,2666.7,2666.6,2.5617]
[1739453934675,5.08215,2667.2,2666.6,2.5617]
[1739453934881,0.74988,2666.7,2666.6,2.5617]
[1739453935081,0.00562251,2666.9,2666.6,5.7695]
[1739453935379,0.00562251,2666.9,2666.6,2.5617]
[1739453935580,0.74988,2666.7,2666.6,2.5617]
[1739453935977,0.00562251,2666.9,2666.6,2.5617]
[1739453936184,0.74985,2666.8,2666.6,2.5617]
[1739453936376,0.00562251,2666.9,2666.6,2.5617]
[1739453936579,0.74985,2666.8,2666.6,3.31161]
[1739453936876,0.74988,2666.7,2666.6,2.5617]
[1739453938481,0.74993,2666.5,2666.4,0.00562251]
[1739453940083,0.75012,2665.9,2665.6,3.51841971]
[1739453940273,0.75011,2665.9,2665.7,0.75015]
[1739453940478,1.87498,2666.4,2665.6,44.31841971]
[1739453940679,9.60509137,2666.9,2665.9,3.2078]
[1739453940881,3.2078,2666.3,2665.6,44.31841971]
[1739453941083,0.75016,2665.7,2665.6,0.31061971]
[1739453941386,1.87537,2665.8,2665.0,3.2078]
[1739453941683,0.75021,2665.5,2665.4,0.00562251]
[1739453942273,0.75021,2665.5,2665.4,0.30640962]
[1739453942780,3.958,2665.6,2665.4,0.30640962]
[1739453942974,3.2078,2665.6,2665.4,0.30640962]
[1739453943285,0.00562251,2665.7,2665.4,0.30640962]
[1739453943481,0.7502,2665.6,2665.4,0.30640962]
[1739453943685,0.00562251,2665.7,2665.4,0.30640962]
[1739453943882,0.00562251,2665.7,2665.6,0.75019]
[1739453944079,0.74997,2666.4,2666.1,0.75003]
[1739453944282,3.2078,2667.1,2666.1,3.2078]
[1739453944585,0.74987,2666.8,2666.5,0.74992]
[1739453944780,0.74976,2667.2,2666.9,0.74981]
[1739453944981,0.74988,2666.8,2666.4,3.2078]
[1739453945176,0.74986,2666.8,2666.4,3.95774]
[1739453945381,3.2078,2667.1,2666.4,3.95774]
[1739453945586,0.74996,2666.4,2666.3,2.28962251]
[1739453945885,0.74996,2666.4,2666.3,0.00562251]
[1739453946385,0.74996,2666.4,2666.3,2.51e-06]
[1739453946581,6.74996,2666.4,2666.3,2.51e-06]
[1739453946785,6.81504209,2666.4,2666.3,2.51e-06]
[1739453948080,6.81504388,2666.4,2666.3,2.51e-06]
[1739453948581,26.45604388,2666.4,2666.3,2.51e-06]
[1739453948979,29.46108388,2666.4,2664.7,3.2078]
[1739453949186,0.75041,2664.8,2664.7,3.2078]
[1739453949485,0.75039,2664.9,2664.7,3.2078]
[1739453949686,0.75037,2665.0,2664.7,3.2078]
[1739453949985,3.2078,2665.3,2664.7,3.2078]
[1739453950185,0.00562251,2665.1,2664.7,3.2078]
[1739453950692,0.75596251,2665.1,2664.7,3.95823]
[1739453950892,0.75041,2664.8,2664.7,3.51138952]
[1739453951485,0.00562251,2665.1,2664.7,3.51138952]
[1739453951786,0.75595251,2665.1,2664.8,0.7504]
[1739453951981,0.75595251,2665.1,2664.7,4.26181952]
[1739453952283,0.75596251,2665.1,2664.7,4.26180952]
[1739453952488,0.00562251,2665.1,2664.7,4.26180952]
[1739453952688,0.00562251,2665.1,2664.7,3.51138952]
[1739453953094,0.00562251,2665.1,2665.0,3.2078]
[1739453953285,0.75036,2665.0,2664.7,0.75043]
[1739453953484,0.75039,2664.9,2664.6,3.21342251]
[1739453953685,0.75044,2664.7,2664.6,3.51637515]
[1739453953884,0.75042,2664.8,2664.6,4.26683515]
[1739453954088,0.00562251,2665.1,2664.6,3.51637515]
[1739453954391,0.75044,2664.7,2664.6,0.30857515]
[1739453954888,0.00562251,2665.1,2664.6,0.30857515]
[1739453955092,0.00562251,2665.1,2664.7,0.75043]
[1739453955286,0.75044,2664.7,2664.6,0.30857515]
[1739453955481,0.75043,2664.8,2664.6,1.05903515]
[1739453955686,0.00562251,2665.1,2664.6,0.30857515]
[1739453956180,0.75044,2664.7,2664.6,0.30857515]
[1739453956791,0.75044,2664.7,2664.6,5.15e-06]
[1739453956989,0.75069,2663.8,2663.6,3.2078]
[1739453957190,1.87649,2664.2,2663.6,3.2078]
[1739453957386,3.2078,2664.3,2663.6,44.3184525]
[1739453957593,3.2078,2664.7,2663.6,44.3184525]
[1739453957789,1.87618,2664.6,2663.9,3.2078]
[1739453957993,1.87618,2664.6,2663.9,0.00376855]
[1739453958191,0.75062,2664.1,2663.9,0.75441855]
[1739453958490,0.75044,2664.8,2664.5,0.75048]
[1739453958695,25.43052251,2665.1,2664.6,40.8]
[1739453958886,3.2078,2664.7,2663.9,3.21156855]
[1739453959189,3.2078,2665.0,2664.2,3.2078]
[1739453959391,3.2078,2665.0,2664.3,40.8]
[1739453959591,0.75038,2664.9,2664.7,0.75043]
[1739453959884,3.2078,2665.0,2664.5,0.75049]
[1739453959885,0.75045,2664.7,2664.5,0.75049]
[1739453960093,3.2078,2665.0,2664.6,0.75046]
[1739453960285,3.2078,2665.0,2664.3,40.8]
[1739453960691,0.75052,2664.4,2664.3,40.8]
[1739453960897,1.87615,2664.7,2664.0,2.4895]
[1739453961090,24.17068137,2665.1,2664.0,2.4895]
[1739453961091,3.2078,2665.0,2664.0,2.4895]
[1739453961286,0.75051,2664.5,2664.3,3.95834]
[1739453961485,3.2078,2665.0,2664.3,3.2078]
[1739453961691,20.40397251,2665.1,2664.9,0.75036]
[1739453961994,0.00562251,2665.1,2665.0,0.75036]
[1739453962192,0.00562251,2665.1,2664.6,3.2078]
[1739453962490,0.00562251,2665.1,2665.0,3.2078]
[1739453962696,0.00562251,2665.1,2665.0,0.75036]
[1739453962889,0.00562251,2665.1,2664.8,0.7504]
[1739453963091,0.75036,2665.0,2664.8,3.2078]
[1739453963291,0.00562251,2665.1,2665.0,0.75036]
[1739453963990,0.75596251,2665.1,2664.8,3.2078]
[1739453964195,0.00562251,2665.1,2664.8,3.2078]
[1739453964791,0.00562251,2665.1,2665.0,0.75036]
[1739453965184,0.75597251,2665.1,2664.9,0.75037]
[1739453965395,0.75597251,2665.1,2664.8,3.2078]
[1739453965396,0.00562251,2665.1,2664.8,3.2078]
[1739453965590,0.75037,2665.0,2664.9,0.75038]
[1739453965784,0.00562251,2665.1,2665.0,0.75036]
[1739453966996,0.00562251,2665.1,2664.5,3.2078]
[1739453967294,0.00562251,2665.1,2665.0,0.75036]
[1739453967494,0.00562251,2665.1,2664.8,3.9582]
[1739453967703,0.00562251,2665.1,2664.8,3.2078]
[1739453967887,0.00562251,2665.1,2665.0,0.75036]
[1739453968989,22.8588,2666.2,2665.9,0.75008]
[1739453969190,22.8588,2666.2,2665.7,3.2078]
[1739453969498,2.4366,2666.7,2666.1,3.2078]
[1739453969696,19.65,2667.2,2666.4,3.2078]
[1739453969897,3.2078,2667.5,2666.9,3.2078]
[1739453970194,3.2078,2667.5,2667.0,3.95759]
[1739453970195,0.00562251,2667.1,2667.0,3.95759]
[1739453970499,5.5431404,2668.1,2667.4,0.74967]
[1739453970500,3.2078,2668.1,2667.4,0.74967]
[1739453970691,3.2078,2668.1,2667.3,0.74969]
[1739453970893,3.2078,2668.1,2667.5,3.2078]
[1739453971294,3.2078,2668.4,2667.5,3.2078]
[1739453971795,0.00562251,2668.2,2667.5,3.2078]
[1739453972002,0.75508251,2668.2,2667.8,3.2078]
[1739453972196,0.00562251,2668.2,2667.8,3.2078]
[1739453972507,0.74949,2668.1,2667.8,3.2078]
[1739453972804,0.7495,2668.1,2667.8,3.2078]
[1739453972999,0.00562251,2668.2,2667.8,3.95735]
[1739453973298,0.00562251,2668.2,2668.1,3.95728]
[1739453973700,0.00562251,2668.2,2668.1,3.2078]
[1739453973897,0.00562251,2668.2,2667.9,0.00562251]
[1739453974408,0.00562251,2668.2,2667.9,0.75514251]
[1739453974597,0.00562251,2668.2,2667.9,0.00562251]
[1739453975397,0.74948,2668.1,2667.9,0.00562251]
[1739453975700,0.00562251,2668.2,2667.9,0.00562251]
[1739453975896,0.00562251,2668.2,2667.9,0.75516251]
[1739453976099,0.00562251,2668.2,2667.9,0.00562251]
[1739453976397,0.74951,2668.0,2667.9,0.00562251]
[1739453977202,0.7495,2668.1,2667.9,0.00562251]
[1739453977398,0.00562251,2668.2,2667.9,0.00562251]
[1739453977903,0.74951,2668.0,2667.9,0.00562251]
[1739453978108,3.95731,2668.0,2667.9,2.51e-06]
[1739453978405,10.02234828,2668.0,2667.9,2.51e-06]
[1739453979002,0.74988,2666.7,2666.6,3.2078]
[1739453979398,0.74996,2666.4,2666.3,2.3645]
[1739453979604,0.75001,2666.3,2666.0,3.2078]
[1739453979805,3.2078,2667.0,2666.0,3.2078]
[1739453980010,3.2078,2666.6,2665.7,5.6691]
[1739453980305,0.74999,2666.3,2666.2,0.00562251]
[1739453980901,3.95779,2666.3,2666.2,0.00562251]
[1739453981102,0.74999,2666.3,2666.2,0.00562251]
[1739453983301,3.2078,2666.7,2666.2,0.00562251]
[1739453983499,6.15769,2666.7,2666.3,0.74999]
[1739453983804,5.4078,2666.7,2666.2,0.00562251]
[1739453984510,0.74999,2666.3,2666.2,0.00562251]
[1739453987708,0.74999,2666.3,2666.2,2.51e-06]
[1739453988413,5.28195214,2666.3,2666.2,2.51e-06]
[1739453988603,11.34703596,2666.3,2666.2,2.51e-06]
[1739453989316,5.28195214,2666.3,2666.2,2.51e-06]
[1739453989515,0.74999,2666.3,2666.2,2.51e-06]
[1739453990010,11.34703356,2666.3,2666.2,2.51e-06]
[1739453992206,0.74999,2666.3,2666.2,2.51e-06]
[1739453993216,0.74999,2666.3,2666.2,40.80000251]
[1739453993414,0.74998,2666.4,2666.2,0.75002251]
[1739453993716,4.59342251,2666.8,2666.4,0.74995]
[1739453994017,4.59342251,2666.8,2666.2,3.20780251]
[1739453994209,3.2078,2666.7,2666.2,2.51e-06]
[1739453994409,6.46809251,2666.8,2666.2,2.51e-06]
[1739453994604,0.74997,2666.4,2666.2,2.51e-06]
[1739453994815,3.2078,2666.7,2666.2,2.51e-06]
[1739453995117,0.74999,2666.3,2666.2,2.51e-06]
[1739453995419,1.8747,2666.7,2666.2,2.51e-06]
[1739453995722,0.74999,2666.3,2666.2,2.51e-06]
[1739453996012,3.95779,2666.3,2666.2,2.51e-06]
[1739453996213,0.74999,2666.3,2666.2,2.51e-06]
[1739453996618,4.59342251,2666.8,2666.2,3.20780251]
[1739453996916,0.00562251,2666.8,2666.5,0.74991]
[1739453997112,0.7499,2666.7,2666.5,0.74991]
[1739453997611,0.00562251,2666.8,2666.3,1.87498]
[1739453998016,0.00562251,2666.8,2666.2,5.38180251]
[1739453998017,0.7499,2666.7,2666.2,5.38180251]
[1739453998217,0.00562251,2666.8,2666.5,3.2078]
[1739453998418,0.00562251,2666.8,2666.7,0.74988]
[1739453998822,0.74975,2667.2,2667.0,0.74977]
[1739453999012,0.74975,2667.2,2666.8,3.2078]
[1739453999318,0.74972,2667.3,2667.2,0.74973]
[1739453999517,3.2078,2667.5,2667.1,3.2078]
[1739453999823,3.2078,2667.5,2666.8,5.3818]
[1739454000118,0.74976,2667.1,2667.0,0.74978]
[1739454000317,1.87433,2667.3,2666.6,4.67]
[1739454000518,3.2078,2667.5,2666.6,4.67]
[1739454000714,0.74988,2666.7,2666.6,4.67]
[1739454001021,1.87414,2667.5,2666.6,4.67]
[1739454001320,0.74974,2667.2,2667.1,0.74975]
[1739454001526,3.21342251,2667.6,2667.0,3.2078]
[1739454001711,0.74972,2667.3,2667.0,3.2078]
[1739454001918,3.21342251,2667.6,2666.7,3.2078]
[1739454002214,3.2078,2667.0,2666.3,3.95778]
[1739454002520,0.74996,2666.4,2666.3,3.95778]
[1739454002720,0.74995,2666.5,2666.3,3.2078]
[1739454003028,3.2078,2667.0,2666.5,0.74992]
[1739454003323,3.2078,2667.0,2666.3,3.2078]
[1739454003518,0.74996,2666.4,2666.3,3.2078]
[1739454005120,0.74999,2666.3,2666.2,2.51e-06]
[1739454005314,6.13179,2666.3,2666.2,2.51e-06]
[1739454006714,12.13179,2666.3,2666.2,2.51e-06]
[1739454007019,6.13179,2666.3,2666.2,2.51e-06]
[1739454007221,5.3818,2666.3,2666.2,2.51e-06]
[1739454007522,6.13179,2666.3,2666.2,2.51e-06]
[1739454007725,12.13179,2666.3,2666.2,2.51e-06]
[1739454008118,6.19687541,2666.3,2666.2,2.51e-06]
[1739454008326,6.13179,2666.3,2666.2,2.51e-06]
[1739454008520,3.95779,2666.3,2666.2,2.51e-06]
[1739454009319,0.74999,2666.3,2666.2,2.51e-06]
[1739454009725,3.95779,2666.3,2666.2,2.51e-06]
[1739454010720,10.02287313,2666.3,2666.2,2.51e-06]
[1739454011226,4.4857435,2666.3,2666.2,2.51e-06]
[1739454011420,6.6597435,2666.3,2666.2,2.51e-06]
[1739454011619,12.6597435,2666.3,2666.2,2.51e-06]
[1739454011820,17.04153258,2666.3,2666.2,2.51e-06]
[1739454012026,0.75036,2665.0,2664.9,5.7783]
[1739454012227,3.2078,2665.4,2664.9,2.5705]
[1739454012530,0.75026,2665.4,2664.9,2.5705]
[1739454012827,2.174,2665.7,2665.1,0.75031]
[1739454013129,0.75028,2665.3,2665.1,0.75031]
[1739454013326,2.17962251,2665.7,2665.1,0.00562251]
[1739454013531,0.7503,2665.2,2665.1,0.00562251]
[1739454014624,4.61231641,2665.2,2665.1,0.00562251]
[1739454015924,0.7503,2665.2,2665.1,0.00562251]
[1739454016926,4.61231641,2665.2,2665.1,2.51e-06]
[1739454017137,0.7503,2665.2,2665.1,2.51e-06]
[1739454017629,4.61231641,2665.2,2665.1,2.51e-06]
[1739454017825,12.78731641,2665.2,2665.1,2.51e-06]
[1739454018133,12.85243024,2665.2,2665.1,2.51e-06]
[1739454018922,3.75212,2664.8,2663.7,5.0904]
[1739454019122,0.75069,2663.8,2663.7,5.0904]
[1739454019428,0.75069,2663.9,2663.7,5.0904]
[1739454019632,3.2078,2664.2,2663.7,5.0904]
[1739454020027,3.21342251,2664.2,2663.7,5.09416855]
[1739454020534,0.00562251,2664.2,2664.0,0.75061]
[1739454020733,0.00562251,2664.2,2663.7,5.09416855]
[1739454020935,0.75622251,2664.2,2663.9,0.75066]
[1739454021237,0.00562251,2664.2,2663.9,0.75065]
[1739454021434,0.75622251,2664.2,2664.0,0.75063]
[1739454021635,0.00562251,2664.2,2663.8,3.2078]